bitfinex/quotes_SOLUSD_20240914
["timestamp","ask_amount","ask_price","bid_price","bid_amount"]
[1726291507123,6.1436,139.02,138.98,20.0]
[1726291508435,6.1436,139.02,138.99,3.62119074]
[1726291509934,6.1436,139.02,138.99,2.62119074]
[1726291510329,6.1436,139.02,138.98,20.0]
[1726291515404,6.1436,139.02,138.96,0.2604447]
[1726291515730,6.1436,139.02,138.96,20.2604447]
[1726291516611,6.1436,139.02,138.97,23.776884]
[1726291530538,6.1436,139.02,138.96,20.2604447]
[1726291530912,6.1436,139.02,138.96,0.2604447]
[1726291533820,16.3055,139.01,138.96,0.2604447]
[1726291534538,6.01,139.0,138.96,0.2604447]
[1726291535335,16.3055,138.99,138.96,0.2604447]
[1726291537635,16.3055,138.99,138.92,20.2604447]
[1726291537636,16.3055,138.99,138.94,20.0]
[1726291539321,6.01,138.98,138.92,20.0208894]
[1726291539530,6.01,138.98,138.92,0.0208894]
[1726291540030,6.01,138.98,138.92,20.0208894]
[1726291540850,6.01,138.98,138.93,23.776884]
[1726291542942,6.01,138.98,138.93,23.276884]
[1726291549334,6.01,138.98,138.86,27.49312748]
[1726291549335,16.5185,138.97,138.89,20.0]
[1726291549650,16.5185,138.97,138.89,31.49293349]
[1726291549953,16.5185,138.97,138.91,20.0]
[1726291550326,16.5185,138.97,138.91,31.49293349]
[1726291550831,16.5185,138.97,138.92,24.153354]
[1726291551031,16.5185,138.97,138.94,24.027864]
[1726291551544,16.5185,138.97,138.94,23.902374]
[1726291551732,16.5185,138.97,138.94,23.776884]
[1726291553652,16.5185,138.97,138.95,20.25098]
[1726291560366,16.5185,138.97,138.95,20.0]
[1726291565253,16.5185,138.97,138.92,24.153354]
[1726291565451,16.5185,138.97,138.93,20.0]
[1726291572859,16.5185,138.97,138.94,23.776884]
[1726291573972,16.5185,138.97,138.93,0.12549]
[1726291574176,16.5185,138.97,138.92,24.027864]
[1726291574368,16.5185,138.97,138.93,20.0]
[1726291576154,16.5185,138.97,138.89,20.0]
[1726291576460,16.5185,138.97,138.91,20.0]
[1726291576655,16.5185,138.97,138.93,20.0]
[1726291579173,16.5185,138.97,138.92,23.776884]
[1726291579364,16.5185,138.97,138.92,20.0]
[1726291579880,16.5185,138.97,138.9,20.0]
[1726291580679,16.5185,138.97,138.92,20.0]
[1726291585781,16.5185,138.97,138.93,23.776884]
[1726291586667,16.5185,138.97,138.95,23.776884]
[1726291591490,16.5185,138.97,138.95,23.276884]
[1726291592486,16.5185,138.97,138.95,22.776884]
[1726291596589,6.01,138.98,138.95,22.776884]
[1726291598185,6.01,138.98,138.91,20.0]
[1726291598493,6.01,138.98,138.91,31.49293349]
[1726291598695,6.01,138.98,138.93,20.0]
[1726291599062,6.01,138.98,138.93,31.49293349]
[1726291599262,6.01,138.98,138.94,24.027864]
[1726291599464,6.01,138.98,138.95,20.0]
[1726291600492,6.01,138.98,138.93,23.776884]
[1726291600682,6.01,138.98,138.94,20.0]
[1726291602586,15.1738,138.97,138.87,58.00907938]
[1726291602891,15.1738,138.97,138.89,20.0]
[1726291603088,15.1738,138.97,138.89,31.49293349]
[1726291603592,15.1738,138.97,138.89,30.99293349]
[1726291604393,15.1738,138.97,138.91,0.25098]
[1726291605889,15.1738,138.97,138.91,20.25098]
[1726291612011,15.1738,138.97,138.91,20.0]
[1726291615302,21.7558,138.96,138.88,0.2604447]
[1726291616487,21.7558,138.96,138.88,11.75337819]
[1726291616682,21.7558,138.96,138.89,44.027864]
[1726291619705,21.7558,138.96,138.89,55.52079749]
[1726291620496,21.7558,138.96,138.9,0.12549]
[1726291622107,21.7558,138.96,138.89,55.52079749]
[1726291622283,21.7558,138.96,138.89,44.027864]
[1726291640923,21.7558,138.96,138.9,11.61842349]
[1726291641134,21.7558,138.96,138.91,44.027864]
[1726291641425,21.7558,138.96,138.89,0.25098]
[1726291641601,21.7558,138.96,138.9,0.12549]
[1726291643003,21.7558,138.96,138.91,24.027864]
[1726291644843,21.7558,138.96,138.92,20.0]
[1726291651139,21.7558,138.96,138.92,20.0]
[1726291654131,21.7558,138.96,138.89,0.25098]
[1726291654321,29.0836447,139.02,138.88,0.2604447]
[1726291654526,22.9135,138.98,138.88,0.2604447]
[1726291655136,16.584,138.98,138.88,0.2604447]
[1726291655319,16.584,138.96,138.88,0.2604447]
[1726291655522,6.3295,138.95,138.88,0.2604447]
[1726291655839,6.3295,138.95,138.89,0.25098]
[1726291656135,6.3295,138.95,138.89,24.153354]
[1726291656334,6.3295,138.95,138.9,20.0]
[1726291657023,6.3295,138.95,138.89,24.153354]
[1726291657219,6.3295,138.95,138.91,23.776884]
[1726291677619,6.3295,138.95,138.88,20.2604447]
[1726291679349,6.3295,138.95,138.89,24.153354]
[1726291679545,6.3295,138.95,138.9,20.0]
[1726291682141,6.3295,138.95,138.91,23.776884]
[1726291682751,16.584,138.96,138.93,23.776884]
[1726291683944,16.584,138.96,138.91,20.0]
[1726291684148,16.584,138.96,138.9,20.12549]
[1726291684344,16.584,138.96,138.91,23.902374]
[1726291684535,16.584,138.96,138.92,20.0]
[1726291686248,16.584,138.96,138.91,23.776884]
[1726291686444,16.584,138.96,138.91,20.0]
[1726291695955,6.6355,138.95,138.91,20.0]
[1726291699458,6.6355,138.95,138.9,23.776884]
[1726291704874,6.6355,138.95,138.91,24.027864]
[1726291705042,6.6355,138.95,138.91,35.52079749]
[1726291705244,6.6355,138.95,138.91,0.25098]
[1726291715090,6.6355,138.95,138.93,20.0]
[1726291715870,16.584,138.96,138.93,20.0]
[1726291720350,6.1191,138.98,138.94,23.776884]
[1726291730185,15.0658,139.0,138.95,20.25098]
[1726291730699,15.0658,139.0,138.96,23.776884]
[1726291731269,6.3834447,139.02,138.98,23.776884]
[1726291733567,0.2604447,139.02,138.98,23.776884]
[1726291736286,0.2604447,139.02,138.93,15.107]
[1726291736287,24.027864,139.0,138.86,57.82207938]
[1726291736468,24.027864,139.0,138.88,30.2604447]
[1726291736469,24.027864,138.98,138.88,30.2604447]
[1726291736669,24.027864,138.98,138.88,0.2604447]
[1726291736884,0.12549,138.97,138.88,0.2604447]
[1726291744869,0.12549,138.97,138.88,20.2604447]
[1726291750107,0.12549,138.97,138.88,0.2604447]
[1726291750300,0.12549,138.97,138.88,20.2604447]
[1726291751099,15.4624,138.96,138.88,20.2604447]
[1726291751301,23.776884,138.95,138.88,20.2604447]
[1726291754084,6.5055,138.94,138.88,20.2604447]
[1726291754902,6.5055,138.94,138.88,0.2604447]
[1726291755091,23.776884,138.92,138.88,0.2604447]
[1726291765200,23.776884,138.9,138.88,0.2604447]
[1726291765504,15.8056,138.89,138.88,0.2604447]
[1726291765708,15.8056,138.89,138.84,20.0]
[1726291765709,15.8056,138.89,138.84,19.7604447]
[1726291765891,15.8056,138.89,138.83,0.2604447]
[1726291767608,15.8056,138.89,138.83,11.75337819]
[1726291767812,15.8056,138.89,138.84,10.99293349]
[1726291768309,15.8056,138.89,138.83,20.2604447]
[1726291768511,15.8056,138.89,138.83,31.75337819]
[1726291773802,15.8056,138.89,138.83,31.25337819]
[1726291774008,15.8056,138.89,138.83,19.7604447]
[1726291778316,15.8056,138.89,138.83,0.12549]
[1726291780927,14.3056,138.89,138.83,0.12549]
[1726291783914,14.3056,138.89,138.83,20.12549]
[1726291785743,14.3056,138.89,138.84,0.12549]
[1726291786032,14.3056,138.89,138.85,0.12549]
[1726291786205,14.3056,138.89,138.84,11.36940349]
[1726291786406,14.3056,138.89,138.83,31.61842349]
[1726291788313,14.3056,138.89,138.84,0.37647]
[1726291788837,13.8056,138.89,138.84,0.37647]
[1726291795158,13.8056,138.89,138.84,11.86940349]
[1726291795451,13.8056,138.89,138.85,20.0]
[1726291796829,13.8056,138.89,138.85,19.0]
[1726291797732,13.8056,138.89,138.84,0.37647]
[1726291799031,15.9666,138.92,138.87,11.49293349]
[1726291799237,15.9666,138.92,138.88,20.0]
[1726291799432,15.9666,138.92,138.89,20.0]
[1726291799846,15.9666,138.92,138.89,31.49293349]
[1726291800347,6.5459,138.93,138.89,31.49293349]
[1726291800945,0.2604447,138.94,138.91,11.49293349]
[1726291806244,0.2604447,138.94,138.9,20.0]
[1726291806960,0.2604447,138.94,138.89,20.0]
[1726291809058,0.2604447,138.94,138.89,11.49293349]
[1726291809440,0.2604447,138.94,138.9,20.0]
[1726291812868,80.0,138.9,138.89,31.61842349]
[1726291813238,80.0,138.9,138.89,0.12549]
[1726291813463,80.0,138.9,138.89,11.49293349]
[1726291814955,80.0,138.9,138.89,31.49293349]
[1726291816271,80.0,138.9,138.88,0.12549]
[1726291816473,80.0,138.9,138.89,31.49293349]
[1726291820274,80.0,138.9,138.89,31.61842349]
[1726291825978,80.0,138.9,138.89,31.74391349]
[1726291826468,80.0,138.9,138.89,31.86940349]
[1726291827880,80.0,138.9,138.89,55.64628749]
[1726291828370,7.50637148,138.9,138.89,55.64628749]
[1726291830750,0.2604447,138.94,138.92,20.25098]
[1726291831165,0.2604447,138.94,138.93,11.61842349]
[1726291831373,0.2604447,138.94,138.93,31.74391349]
[1726291834368,0.2604447,138.94,138.93,31.86940349]
[1726291837963,0.2604447,138.94,138.93,98.36136687]
[1726291840365,0.2604447,138.94,138.93,86.86843338]
[1726291840577,0.2604447,138.94,138.93,98.36136687]
[1726291841262,0.2604447,138.94,138.93,11.86940349]
[1726291841586,0.2604447,138.94,138.93,31.86940349]
[1726291842685,0.2604447,138.94,138.93,20.37647]
[1726291842865,0.2604447,138.94,138.93,31.86940349]
[1726291846764,0.2604447,138.94,138.92,20.0]
[1726291853596,0.2604447,138.94,138.91,20.0]
[1726291854772,0.2604447,138.94,138.88,11.74391349]
[1726291854975,0.2604447,138.94,138.87,50.03879882]
[1726291855195,0.2604447,138.94,138.88,11.61842349]
[1726291855390,0.2604447,138.94,138.88,11.49293349]
[1726291855672,0.2604447,138.94,138.85,3.61022419]
[1726291855870,24.0373287,138.94,138.86,3.61022419]
[1726291856085,24.0373287,138.94,138.86,11.49293349]
[1726291856287,21.479,138.93,138.85,3.61022419]
[1726291856506,21.479,138.93,138.84,22.42687712]
[1726291856678,21.479,138.93,138.85,11.49293349]
[1726291857094,21.479,138.93,138.85,15.10315768]
[1726291857301,21.479,138.93,138.85,3.61022419]
[1726291857605,21.479,138.93,138.86,20.0]
[1726291857786,21.479,138.93,138.86,23.61022419]
[1726291857987,21.479,138.93,138.86,20.0]
[1726291858310,23.776884,138.92,138.84,7.32371944]
[1726291858483,23.776884,138.92,138.84,18.81665293]
[1726291859394,23.776884,138.92,138.84,11.49293349]
[1726291859589,23.776884,138.92,138.85,20.0]
[1726291862490,23.776884,138.92,138.85,11.49293349]
[1726291863390,21.479,138.93,138.85,11.49293349]
[1726291865112,21.479,138.93,138.85,20.25098]
[1726291872887,21.479,138.93,138.85,0.25098]
[1726291873416,21.479,138.93,138.85,20.25098]
[1726291876904,23.776884,138.92,138.85,0.12549]
[1726291877217,23.776884,138.92,138.84,0.25098]
[1726291880204,21.5898,138.91,138.84,0.25098]
[1726291884208,21.5898,138.91,138.83,31.24391349]
[1726291884614,21.5898,138.91,138.83,30.74391349]
[1726291885298,21.5898,138.91,138.83,30.24391349]
[1726291886311,21.5898,138.91,138.84,0.12549]
[1726291887817,22.4115,138.9,138.83,20.0]
[1726291888024,22.4115,138.89,138.81,20.0]
[1726291888208,22.4115,138.89,138.8,54.20801287]
[1726291889224,22.4115,138.89,138.81,0.25098]
[1726291889429,22.4115,138.89,138.81,20.25098]
[1726291892411,22.4115,138.89,138.81,31.74391349]
[1726291895614,22.4115,138.89,138.81,20.25098]
[1726291895820,22.4115,138.89,138.81,31.74391349]
[1726291896419,22.4115,138.89,138.83,20.0]
[1726291898026,22.4115,138.89,138.81,31.74391349]
[1726291904718,22.4115,138.89,138.83,20.25098]
[1726291915256,12.06012,138.83,138.82,43.09154938]
[1726291917244,12.06012,138.83,138.82,20.37647]
[1726291917615,12.06012,138.83,138.82,63.09154938]
[1726291918415,12.06012,138.83,138.82,66.70363342]
[1726291920943,12.06012,138.83,138.82,63.09154938]
[1726291921256,12.06012,138.83,138.82,66.70363342]
[1726291921446,12.06012,138.83,138.82,23.98855404]
[1726291921748,12.06012,138.83,138.82,23.73757404]
[1726291922044,12.06012,138.83,138.82,3.61208404]
[1726291923746,12.06012,138.83,138.81,20.0]
[1726291924243,12.06012,138.83,138.82,3.61221831]
[1726291924442,12.06012,138.83,138.82,78.19670118]
[1726291925951,12.06012,138.83,138.82,66.70376769]
[1726291928149,12.06012,138.83,138.82,23.98868831]
[1726291928445,12.06012,138.83,138.82,3.61221831]
[1726291934060,12.06012,138.83,138.82,3.61219963]
[1726291935054,12.06012,138.83,138.82,3.98866963]
[1726291936234,12.06012,138.83,138.82,3.98869464]
[1726291937255,12.06012,138.83,138.82,3.73771464]
[1726291939453,12.06012,138.83,138.82,3.61222464]
[1726291940352,12.06012,138.83,138.8,3.61222464]
[1726291940555,12.06012,138.83,138.81,3.61222464]
[1726291940852,12.06012,138.83,138.79,0.2604447]
[1726291941356,12.06012,138.83,138.8,3.61331708]
[1726291941542,12.06012,138.83,138.79,0.2604447]
[1726291941741,12.06012,138.83,138.8,3.61339718]
[1726291942049,12.06012,138.83,138.79,0.2604447]
[1726291942253,12.06012,138.83,138.8,3.61339718]
[1726291944447,12.06012,138.83,138.79,0.2604447]
[1726291944963,12.06012,138.83,138.79,3.87384188]
[1726291945150,12.06012,138.83,138.79,0.2604447]
[1726291945671,12.06012,138.83,138.79,3.87384188]
[1726291945962,12.06012,138.83,138.79,0.2604447]
[1726291946367,12.06012,138.83,138.79,23.87384188]
[1726291947468,12.06012,138.83,138.79,20.2604447]
[1726291947847,12.06012,138.83,138.79,23.87374512]
[1726291950365,12.06012,138.83,138.79,3.87374512]
[1726291950572,12.06012,138.83,138.79,0.2604447]
[1726291951073,12.06012,138.83,138.79,3.87374137]
[1726291951566,12.06012,138.83,138.79,0.2604447]
[1726292003306,23.776884,138.82,138.79,0.2604447]
[1726292011506,15.5873,138.81,138.79,0.2604447]
[1726292016615,6.2718,138.8,138.79,0.2604447]
[1726292017316,30.048684,138.8,138.79,0.2604447]
[1726292023801,30.299664,138.8,138.79,0.2604447]
[1726292023994,30.425154,138.8,138.79,0.2604447]
[1726292024195,30.174174,138.8,138.79,0.2604447]
[1726292024712,30.299664,138.8,138.79,0.2604447]
[1726292024916,30.425154,138.8,138.79,0.2604447]
[1726292026717,30.048684,138.8,138.79,0.2604447]
[1726292027722,6.2718,138.8,138.79,0.2604447]
[1726292031633,15.5873,138.81,138.79,0.2604447]
[1726292034308,15.5873,138.81,138.75,0.2604447]
[1726292034309,0.12549,138.79,138.75,0.2604447]
[1726292037327,0.25098,138.79,138.75,0.2604447]
[1726292037529,0.25098,138.78,138.75,0.2604447]
[1726292037714,0.12549,138.78,138.75,0.2604447]
[1726292037914,0.25098,138.79,138.75,0.2604447]
[1726292040629,6.3474,138.8,138.75,0.2604447]
[1726292047239,15.5873,138.81,138.75,0.2604447]
[1726292049745,23.776884,138.82,138.75,0.2604447]
[1726292054938,0.25098,138.81,138.75,0.2604447]
[1726292056031,0.12549,138.8,138.75,0.2604447]
[1726292059355,23.902374,138.8,138.75,0.2604447]
[1726292059854,0.12549,138.8,138.75,0.2604447]
[1726292074464,0.25098,138.81,138.75,0.2604447]
[1726292075953,0.12549,138.8,138.75,0.2604447]
[1726292079544,23.902374,138.8,138.75,0.2604447]
[1726292079744,0.12549,138.8,138.75,0.2604447]
[1726292081562,0.25098,138.81,138.75,0.2604447]
[1726292085675,0.12549,138.8,138.75,0.2604447]
[1726292087952,0.12549,138.8,138.73,15.4873]
[1726292087953,0.12549,138.8,138.73,13.7477447]
[1726292089558,0.12549,138.79,138.73,13.7477447]
[1726292089758,0.12549,138.8,138.73,13.7477447]
[1726292095173,0.12549,138.78,138.71,0.2604447]
[1726292095382,0.12549,138.77,138.71,0.2604447]
[1726292095677,0.25098,138.77,138.71,0.2604447]
[1726292109565,51.490284,138.79,138.71,0.2604447]
[1726292109772,0.12549,138.78,138.71,0.2604447]
[1726292109971,0.25098,138.78,138.71,0.2604447]
[1726292114290,0.12549,138.78,138.71,0.2604447]
[1726292115378,29.850284,138.79,138.71,0.2604447]
[1726292115993,6.0734,138.79,138.71,0.2604447]
[1726292117188,6.0734,138.79,138.71,20.2604447]
[1726292121796,6.0734,138.79,138.72,0.12549]
[1726292122291,6.0734,138.79,138.72,0.25098]
[1726292123273,16.5676,138.8,138.73,62.71507938]
[1726292123474,16.5676,138.8,138.74,0.25098]
[1726292127585,16.5676,138.8,138.75,20.0]
[1726292127790,6.4308,138.82,138.75,20.0]
[1726292130107,6.4308,138.82,138.76,0.37647]
[1726292133392,27.87422,138.83,138.77,31.49293349]
[1726292133708,27.87422,138.83,138.78,20.0]
[1726292138211,27.87422,138.83,138.76,20.37647]
[1726292138514,27.87422,138.83,138.76,31.86940349]
[1726292140205,27.87422,138.83,138.77,11.49293349]
[1726292140427,27.87422,138.83,138.78,20.0]
[1726292141614,12.06012,138.83,138.79,0.12549]
[1726292143407,12.06012,138.83,138.79,0.25098]
[1726292143602,12.06012,138.83,138.8,20.0]
[1726292145312,12.06012,138.83,138.8,31.49293349]
[1726292145617,12.06012,138.83,138.82,20.0]
[1726292146693,12.06012,138.83,138.82,31.61842349]
[1726292147401,12.06012,138.83,138.82,31.74391349]
[1726292147589,12.06012,138.83,138.82,31.86940349]
[1726292148710,12.06012,138.83,138.82,20.37647]
[1726292148907,12.06012,138.83,138.82,31.86940349]
[1726292152115,12.06012,138.83,138.82,55.64628749]
[1726292152903,12.06012,138.83,138.82,71.89478749]
[1726292153214,0.2604447,138.86,138.84,42.71507938]
[1726292153416,0.2604447,138.86,138.85,55.64628749]
[1726292154908,0.2604447,138.86,138.85,56.63843541]
[1726292156514,0.2604447,138.86,138.85,55.64628749]
[1726292157399,0.2604447,138.9,138.89,20.25098]
[1726292157604,0.2604447,138.9,138.89,31.86940349]
[1726292158317,0.2604447,138.9,138.89,55.64628749]
[1726292160622,0.2604447,138.98,138.93,20.25098]
[1726292161099,0.2604447,138.98,138.93,20.0]
[1726292167120,0.2604447,138.98,138.9,42.71507938]
[1726292167427,0.2604447,138.98,138.91,20.0]
[1726292167799,0.2604447,138.98,138.91,31.49293349]
[1726292168523,0.2604447,138.98,138.92,0.25098]
[1726292169118,0.2604447,138.98,138.9,11.74391349]
[1726292169419,0.2604447,138.98,138.91,20.0]
[1726292171127,0.2604447,138.98,138.9,0.25098]
[1726292171431,0.2604447,138.98,138.91,20.0]
[1726292175513,6.1692,138.96,138.91,20.0]
[1726292176029,15.9965,138.95,138.91,20.0]
[1726292177724,15.9965,138.95,138.91,31.49293349]
[1726292177936,15.9965,138.95,138.92,20.0]
[1726292179133,15.9965,138.95,138.91,20.0]
[1726292180715,15.9965,138.95,138.91,11.49293349]
[1726292180918,15.9965,138.95,138.92,20.0]
[1726292181635,6.1692,138.96,138.93,20.0]
[1726292181807,16.2569447,138.98,138.93,31.61842349]
[1726292183737,16.2569447,138.98,138.93,31.74391349]
[1726292186944,16.2569447,138.98,138.93,20.25098]
[1726292192822,16.2569447,138.98,138.93,20.0]
[1726292193717,16.2569447,138.98,138.91,20.0]
[1726292199243,16.2569447,138.98,138.91,23.60953432]
[1726292202433,16.2569447,138.98,138.92,3.60953432]
[1726292203226,16.2569447,138.98,138.92,11.61842349]
[1726292203549,16.2569447,138.98,138.93,20.0]
[1726292204451,16.2569447,138.98,138.9,42.71507938]
[1726292204452,6.1171,138.96,138.9,42.71507938]
[1726292204749,6.1171,138.96,138.91,23.61008651]
[1726292205249,6.1171,138.96,138.91,10.992765]
[1726292206053,6.1171,138.96,138.91,14.60293003]
[1726292206835,6.1171,138.96,138.91,10.992765]
[1726292207846,16.1337447,138.94,138.88,20.0]
[1726292208031,16.1337447,138.94,138.89,3.61026438]
[1726292208235,16.1337447,138.94,138.9,3.61026438]
[1726292208439,16.1337447,138.94,138.88,42.71507938]
[1726292209135,16.1337447,138.94,138.89,3.61027499]
[1726292209452,16.1337447,138.94,138.9,3.61027499]
[1726292209649,16.1337447,138.94,138.89,20.0]
[1726292209828,16.1337447,138.94,138.9,3.61025053]
[1726292210153,16.1337447,138.94,138.88,20.0]
[1726292210345,16.1337447,138.94,138.89,3.61022607]
[1726292210531,16.1337447,138.94,138.9,3.61022607]
[1726292210735,16.1337447,138.94,138.88,20.0]
[1726292211030,16.1337447,138.94,138.89,3.61022233]
[1726292211230,16.1337447,138.94,138.9,3.61022233]
[1726292211449,16.1337447,138.94,138.89,3.61022233]
[1726292211652,16.1337447,138.94,138.88,20.0]
[1726292212034,16.1337447,138.94,138.9,3.61024679]
[1726292212238,16.1337447,138.94,138.89,3.61024679]
[1726292212735,16.1337447,138.94,138.87,20.25098]
[1726292212933,16.1337447,138.94,138.88,3.61054904]
[1726292213135,16.1337447,138.94,138.87,20.25098]
[1726292213742,16.1337447,138.94,138.87,31.74391349]
[1726292215850,15.8993,138.92,138.83,54.20801287]
[1726292216047,15.8993,138.92,138.83,42.71507938]
[1726292216938,15.8993,138.92,138.84,20.0]
[1726292222335,15.8993,138.92,138.84,31.49293349]
[1726292222736,15.8993,138.92,138.86,20.12549]
[1726292223954,15.8993,138.92,138.86,31.61842349]
[1726292224841,15.8993,138.92,138.84,20.0]
[1726292239754,15.8993,138.92,138.84,31.49293349]
[1726292239957,15.8993,138.92,138.85,35.39530749]
[1726292240254,15.8993,138.92,138.86,31.49293349]
[1726292240668,15.8993,138.92,138.87,23.902374]
[1726292243874,15.8993,138.92,138.86,20.0]
[1726292244652,15.8993,138.92,138.86,31.49293349]
[1726292246185,15.8993,138.92,138.87,23.776884]
[1726292247190,15.8993,138.92,138.87,35.26981749]
[1726292247883,15.8993,138.92,138.88,20.0]
[1726292257788,15.8993,138.92,138.86,20.0]
[1726292258087,15.8993,138.92,138.84,20.0]
[1726292258389,15.8993,138.92,138.83,54.20801287]
[1726292258390,15.8993,138.92,138.86,20.0]
[1726292262988,15.8993,138.92,138.84,20.0]
[1726292265095,6.422,138.91,138.84,20.0]
[1726292265404,6.422,138.91,138.82,20.0]
[1726292265405,16.5953,138.9,138.82,20.0]
[1726292265599,6.6458,138.89,138.81,42.71507938]
[1726292265897,6.6458,138.89,138.8,11.49293349]
[1726292265898,16.5953,138.88,138.8,11.49293349]
[1726292266083,16.5953,138.88,138.8,19.02224355]
[1726292266995,16.5953,138.88,138.81,23.776884]
[1726292267392,16.5953,138.88,138.82,20.0]
[1726292273698,16.5953,138.88,138.82,23.61227923]
[1726292276493,16.5953,138.88,138.82,20.0]
[1726292276701,16.5953,138.88,138.83,3.6121701]
[1726292277201,16.5953,138.88,138.82,23.6121701]
[1726292280092,16.5953,138.88,138.83,3.61203423]
[1726292280490,16.5953,138.88,138.82,23.61203423]
[1726292281009,16.5953,138.88,138.83,23.776884]
[1726292285092,16.5953,138.88,138.81,0.12549]
[1726292285300,6.4354,138.87,138.81,23.776884]
[1726292285804,6.4354,138.87,138.8,20.0]
[1726292286410,6.4354,138.87,138.8,23.61256461]
[1726292289002,6.4354,138.87,138.8,20.0]
[1726292291318,6.4354,138.87,138.8,19.5]
[1726292291718,6.4354,138.87,138.81,23.776884]
[1726292292301,6.4354,138.87,138.8,19.5]
[1726292294816,6.4354,138.87,138.81,23.902374]
[1726292295019,6.4354,138.87,138.82,20.0]
[1726292295800,6.4354,138.87,138.82,31.49293349]
[1726292299995,6.4354,138.87,138.82,20.0]
[1726292305798,6.4354,138.87,138.81,43.902374]
[1726292309240,6.4354,138.87,138.81,20.12549]
[1726292313518,6.4354,138.87,138.81,20.0]
[1726292314732,6.4354,138.87,138.8,0.12549]
[1726292314907,6.4354,138.87,138.8,0.25098]
[1726292323810,6.4354,138.87,138.81,0.25098]
[1726292324010,6.4354,138.87,138.81,20.25098]
[1726292326316,6.4354,138.87,138.82,0.12549]
[1726292333733,6.4354,138.87,138.83,20.25098]
[1726292334620,6.4354,138.87,138.83,31.74391349]
[1726292336643,6.4354,138.87,138.83,20.25098]
[1726292337520,6.4354,138.87,138.82,0.12549]
[1726292337817,6.4354,138.87,138.82,20.25098]
[1726292340421,6.4354,138.87,138.8,20.25098]
[1726292342845,6.4354,138.87,138.8,20.12549]
[1726292343033,15.4442,138.86,138.8,20.12549]
[1726292349251,15.4442,138.86,138.81,3.61247717]
[1726292349436,15.4442,138.86,138.82,3.61247717]
[1726292349640,15.4442,138.86,138.83,3.61247717]
[1726292349954,15.4442,138.86,138.8,31.61842349]
[1726292350146,15.4442,138.86,138.82,20.0]
[1726292350346,15.4442,138.86,138.83,3.61227201]
[1726292350553,15.4442,138.86,138.82,20.0]
[1726292350749,15.4442,138.86,138.83,3.61219607]
[1726292351139,15.4442,138.86,138.84,3.6119696]
[1726292351652,15.4442,138.86,138.82,31.49293349]
[1726292351860,15.4442,138.86,138.83,3.61187447]
[1726292352154,15.4442,138.86,138.84,3.61187447]
[1726292352356,15.4442,138.86,138.85,3.61179407]
[1726292354164,6.4354,138.87,138.85,3.61179407]
[1726292354657,6.4354,138.87,138.85,3.61157396]
[1726292354870,6.4354,138.87,138.84,20.0]
[1726292355039,6.4354,138.87,138.85,3.61147466]
[1726292355245,6.4354,138.87,138.84,20.0]
[1726292355446,6.4354,138.87,138.85,3.61157396]
[1726292355746,6.4354,138.87,138.84,20.0]
[1726292356438,6.4354,138.87,138.84,31.49293349]
[1726292358337,6.4354,138.87,138.84,20.0]
[1726292381868,6.4354,138.87,138.82,20.0]
[1726292382061,6.4354,138.87,138.82,31.49293349]
[1726292382955,6.4354,138.87,138.84,20.0]
[1726292383276,6.4354,138.87,138.85,23.776884]
[1726292383577,6.4354,138.87,138.84,20.0]
[1726292401667,29.0757447,138.98,138.86,10.0]
[1726292401668,0.25098,138.95,138.86,10.0]
[1726292401868,0.12549,138.94,138.87,5.64431022]
[1726292402164,0.12549,138.94,138.88,5.64431022]
[1726292402483,0.12549,138.94,138.89,5.64431022]
[1726292402654,0.12549,138.94,138.9,5.64431022]
[1726292402855,0.12549,138.94,138.86,10.0]
[1726292403057,0.12549,138.94,138.87,5.64431349]
[1726292403362,0.12549,138.94,138.88,15.64431349]
[1726292403572,0.12549,138.94,138.89,5.64431349]
[1726292403760,0.12549,138.94,138.86,10.0]